[Event "46th GRE-chT Premier 2018"]
[Site "Rio Achaia"]
[Date "2018.07.12"]
[Round "4"]
[White "Pavlidis, Antonios"]
[Black "Milonakis, Georgios"]
[Result "1-0"]
[ECO "C26"]
[WhiteElo "2564"]
[BlackElo "2200"]
[Annotator "ChessBase"]
[PlyCount "91"]
[EventDate "2018.07.10"]
[EventType "team-tourn"]
[EventCountry "GRE"]
[SourceTitle "playchess.com"]
[Source "ChessBase"]
[SourceQuality "1"]
[TimeControl "40/5400+30:1800+30"]

1. e4 {[%emt 0:00:00]} e5 {[%emt 0:00:00]} 2. Nc3 {[%emt 0:00:00]} Nf6 {[%emt 0:00:40]} 3. d4 {[%emt 0:00:00]} exd4 {[%emt 0:02:57]} 4. Qxd4 {[%emt 0:00:00]} Nc6 {[%emt 0:00:50]} 5. Qd3 {[%emt 0:00:00]} d6 {[%emt 0:02:26]} 6. Be2 {[%emt 0:03:24]} Be6 {[%emt 0:05:11]} 7. Nf3 {[%emt 0:05:23]} h6 {[%emt 0:04:38]} 8. Bf4 {[%emt 0:05:56]} g5 {[%emt 0:06:21]} 9. Bg3 {[%emt 0:07:44]} Bg7 {[%emt 0:04:15]} 10. a3 {[%emt 0:17:51]} Nd7 {[%emt 0:06:31]} 11. Qe3 {[%emt 0:06:39]} a6 {[%emt 0:14:06]} 12. Rd1 {[%emt 0:01:48]} O-O {[%emt 0:02:11]} 13. h4 {[%emt 0:02:35]} g4 {[%emt 0:01:23]} 14. Nh2 {[%emt 0:00:21]} Nce5 {[%emt 0:04:22]} 15. Nd5 {[%emt 0:12:44]} Bxd5 {[%emt 0:03:05]} 16. Rxd5 {[%emt 0:00:03]} Nf6 {[%emt 0:03:21]} 17. Rd1 {[%emt 0:01:25]} Qe7 {[%emt 0:00:58]} 18. O-O {[%emt 0:08:18]} Rfe8 {[%emt 0:03:55]} 19. Rfe1 {[%emt 0:00:45]} Qe6 {[%emt 0:05:14]} 20. b3 {[%emt 0:01:40]} Rad8 {[%emt 0:03:27]} 21. c4 {[%emt 0:05:01]} Ng6 {[%emt 0:05:02]} 22. h5 {[%emt 0:02:49]} Ne5 {[%emt 0:00:53]} 23. Bh4 {[%emt 0:00:15]} Kh7 {[%emt 0:03:33]} 24. Nf1 {[%emt 0:00:58]} Nxh5 {[%emt 0:02:26]} 25. Bxd8 {[%emt 0:00:47]} Rxd8 {[%emt 0:00:05]} 26. f4 {[%emt 0:03:06]} gxf3 {[%emt 0:01:27]} 27. Bxf3 {[%emt 0:00:03]} Ng4 {[%emt 0:02:31]} 28. Bxg4 {[%emt 0:06:02]} Qxg4 {[%emt 0:00:07]} 29. Nh2 {[%emt 0:00:26]} Qg6 {[%emt 0:02:59]} 30. Qf3 {[%emt 0:00:26]} Be5 {[%emt 0:04:01]} 31. Ng4 {[%emt 0:00:48]} Rg8 {[%emt 0:00:14]} 32. Nxe5 {[%emt 0:00:41]} dxe5 {[%emt 0:00:07]} 33. Qf5 {[%emt 0:00:23]} Nf4 {[%emt 0:00:11]} 34. Rd2 {[%emt 0:00:44]} Ne6 {[%emt 0:04:03]} 35. Rd7 {[%emt 0:01:13]} Rg7 {[%emt 0:00:43]} 36. Qxg6+ {[%emt 0:02:21]} Kxg6 {[%emt 0:01:05]} 37. Re3 {[%emt 0:00:04]} f6 {[%emt 0:01:10]} 38. Red3 {[%emt 0:01:40]} Rxd7 {[%emt 0:00:55]} 39. Rxd7 {[%emt 0:00:04]} f5 {[%emt 0:00:14]} 40. exf5+ {[%emt 0:00:00]} Kxf5 {[%emt 0:00:00]} 41. b4 {[%emt 0:01:01]} b6 {[%emt 0:02:17]} 42. Kf2 {[%emt 0:00:36]} h5 {[%emt 0:06:40]} 43. Rh7 {[%emt 0:05:09]} Kg6 {[%emt 0:00:31]} 44. Rh8 {[%emt 0:00:59]} a5 {[%emt 0:02:13]} 45. bxa5 {[%emt 0:00:05]} bxa5 {[%emt 0:00:05]} 46. Ra8 {[%emt 0:00:07]} 1-0

[Event "46th GRE-chT Premier 2018"]
[Site "Rio Achaia"]
[Date "2018.07.12"]
[Round "4"]
[White "Mihok, Oliver"]
[Black "Sadzikowski, Daniel"]
[Result "1/2-1/2"]
[ECO "A06"]
[WhiteElo "2550"]
[BlackElo "2567"]
[Annotator "ChessBase"]
[PlyCount "62"]
[EventDate "2018.07.10"]
[EventType "team-tourn"]
[EventCountry "GRE"]
[SourceTitle "playchess.com"]
[Source "ChessBase"]
[SourceQuality "1"]
[TimeControl "40/5400+30:1800+30"]

1. Nf3 {[%emt 0:00:00]} d5 {[%emt 0:00:00]} 2. b3 {[%emt 0:00:11]} Bf5 {[%emt 0:01:57]} 3. Bb2 {[%emt 0:00:17]} e6 {[%emt 0:00:14]} 4. d3 {[%emt 0:01:02]} h6 {[%emt 0:00:54]} 5. Nbd2 {[%emt 0:00:05]} Nf6 {[%emt 0:00:15]} 6. c4 {[%emt 0:04:52]} Bh7 {[%emt 0:06:23]} 7. g3 {[%emt 0:02:03]} Be7 {[%emt 0:10:44]} 8. Bg2 {[%emt 0:00:23]} O-O {[%emt 0:00:19]} 9. O-O {[%emt 0:01:11]} a5 {[%emt 0:05:21]} 10. a3 {[%emt 0:00:42]} Nc6 {[%emt 0:04:20]} 11. cxd5 {[%emt 0:14:08]} exd5 {[%emt 0:00:27]} 12. Re1 {[%emt 0:03:36]} Re8 {[%emt 0:02:40]} 13. Qc2 {[%emt 0:03:57]} Bd6 {[%emt 0:06:44]} 14. Bc3 {[%emt 0:10:59]} Na7 {[%emt 0:07:15]} 15. e4 {[%emt 0:10:16]} dxe4 {[%emt 0:00:25]} 16. dxe4 {[%emt 0:00:31]} Nc6 {[%emt 0:11:15]} 17. Qb2 {[%emt 0:04:29]} Bf8 {[%emt 0:00:15]} 18. Nh4 {[%emt 0:15:15]} Ng4 {[%emt 0:09:44]} 19. Rf1 {[%emt 0:09:17]} b5 {[%emt 0:01:50]} 20. Nf5 {[%emt 0:01:43]} Nge5 {[%emt 0:02:52]} 21. Nf3 {[%emt 0:06:44]} Qf6 {[%emt 0:16:10]} 22. Kh1 {[%emt 0:04:10]} Rad8 {[%emt 0:06:12]} 23. Qc2 {[%emt 0:02:28]} b4 {[%emt 0:02:27]} 24. axb4 {[%emt 0:00:06]} Bxb4 {[%emt 0:00:29]} 25. Bb2 {[%emt 0:01:02]} Bxf5 {[%emt 0:00:56]} 26. exf5 {[%emt 0:00:32]} Qe7 {[%emt 0:01:10]} 27. Rad1 {[%emt 0:00:55]} Rxd1 {[%emt 0:01:02]} 28. Rxd1 {[%emt 0:00:18]} Nxf3 {[%emt 0:00:12]} 29. Bxf3 {[%emt 0:00:22]} Ne5 {[%emt 0:00:11]} 30. Bd5 {[%emt 0:00:50]} Ng4 {[%emt 0:00:28]} 31. h3 {[%emt 0:01:07]} Qe2 {[%emt 0:01:24]} 1/2-1/2

[Event "46th GRE-chT Premier 2018"]
[Site "Rio Achaia"]
[Date "2018.07.12"]
[Round "4"]
[White "Baron, Tal"]
[Black "Grivas, Efstratios"]
[Result "1-0"]
[ECO "C81"]
[WhiteElo "2530"]
[BlackElo "2431"]
[Annotator "RC"]
[PlyCount "99"]
[EventDate "2018.07.10"]
[EventType "team-tourn"]
[EventCountry "GRE"]
[SourceTitle "playchess.com"]
[Source "ChessBase"]
[SourceQuality "1"]
[TimeControl "40/5400+30:1800+30"]

1. e4 {[%emt 0:00:09]} e5 {[%emt 0:00:38]} 2. Nf3 {[%emt 0:00:03]} Nc6 {[%emt 0:00:06]} 3. Bb5 {[%emt 0:00:03]} a6 {[%emt 0:00:07]} 4. Ba4 {[%emt 0:00:04]} Nf6 {[%emt 0:00:09]} 5. O-O {[%emt 0:00:06]} Nxe4 {[%emt 0:00:11]} 6. d4 {[%emt 0:00:02]} b5 {[%emt 0:00:08]} 7. Bb3 {[%emt 0:00:01]} d5 {[%emt 0:00:08]} 8. dxe5 {[%emt 0:00:02]} Be6 {[%emt 0:00:06]} 9. Qe2 {[%emt 0:00:08]} Bc5 {[%emt 0:01:23]} 10. Nbd2 {[%emt 0:01:17]} Nxd2 {[%emt 0:02:38]} 11. Bxd2 {[%emt 0:00:09]} O-O {[%emt 0:02:30]} 12. c3 {[%emt 0:00:18]} Qd7 {[%emt 0:06:59]} 13. Be3 {[%emt 0:15:27]} Bxe3 {[%emt 0:09:06]} 14. Qxe3 {[%emt 0:00:04]} Ne7 {[%emt 0:01:26]} 15. Rfd1 {[%emt 0:17:49]} c6 {[%emt 0:03:35]} 16. h3 {[%emt 0:02:35]} Qa7 {[%emt 0:02:01]} 17. Qf4 {[%emt 0:01:05]} f6 {[%emt 0:08:51]} 18. Bc2 {[%emt 0:04:46]} Qd7 {[%emt 0:09:47]} 19. a4 {[%emt 0:01:46]} fxe5 {[%emt 0:08:10]} 20. Qxe5 {[%emt 0:00:32]} Bf5 {[%emt 0:03:21]} 21. Bxf5 {[%emt 0:02:46]} Nxf5 {[%emt 0:00:24]} 22. axb5 {[%emt 0:00:22]} axb5 {[%emt 0:00:07]} 23. Rxa8 {[%emt 0:00:33]} Rxa8 {[%emt 0:00:01]} 24. Re1 {[%emt 0:00:10]} Nd6 {[%emt 0:04:11]} 25. Qe6+ {[%emt 0:01:50]} Qxe6 {[%emt 0:03:50]} 26. Rxe6 {[%emt 0:00:03]} Rd8 {[%emt 0:01:31]} 27. b4 {[%emt 0:03:53]} Kf8 {[%emt 0:05:49]} 28. Ne5 {[%emt 0:02:57]} Ne4 {[%emt 0:07:22]} 29. Rxc6 {[%emt 0:01:09]} Ra8 {[%emt 0:05:42]} 30. f3 {[%emt 0:00:43]} Ra1+ {[%emt 0:00:02]} 31. Kh2 {[%emt 0:00:03]} Nd2 {[%emt 0:00:06]} 32. Rc5 {[%emt 0:03:53]} Rc1 {[%emt 0:05:15]} 33. Nd7+ {[%emt 0:00:45]} Ke8 {[%emt 0:01:55]} 34. Nb6 {[%emt 0:00:28]} Nf1+ {[%emt 0:01:21]} 35. Kg1 {[%emt 0:00:03]} Ne3+ {[%emt 0:00:08]} 36. Kf2 {[%emt 0:00:09]} Rxc3 {[%emt 0:00:52]} 37. Rxc3 {[%emt 0:01:45]} Nd1+ {[%emt 0:00:05]} 38. Ke2 {[%emt 0:00:09]} Nxc3+ {[%emt 0:00:15]} 39. Kd3 {[%emt 0:00:22]} Na2 {[%emt 0:00:00]} 40. Nxd5 {[%emt 0:00:00]} Kd7 41. f4 {[%emt 0:02:15]} Nc1+ {[%emt 0:07:32]} 42. Kd4 {[%emt 0:01:29]} Kd6 {[%emt 0:00:32]} 43. Nc3 {[%emt 0:00:27]} Kc6 {[%emt 0:00:48]} 44. g4 {[%emt 0:00:42]} Nb3+ {[%emt 0:00:11]} 45. Kd3 {[%emt 0:00:35]} h6 {[%emt 0:01:00]} 46. h4 {[%emt 0:01:46]} Kb6 {[%emt 0:00:31]} 47. h5 {[%emt 0:00:15]} Kc6 {[%emt 0:00:04]} 48. Ke3 {[%emt 0:01:32]} Na1 {[%emt 0:00:27]} 49. Kd2 {[%emt 0:00:21]} Nb3+ {[%emt 0:00:12]} 50. Kd3 {[%emt 0:00:04] Kd5 Ke4+} 1-0

[Event "46th GRE-chT Premier 2018"]
[Site "Rio Achaia"]
[Date "2018.07.12"]
[Round "4"]
[White "Theodorou, Nikolas"]
[Black "Kofidis, Andreas"]
[Result "1-0"]
[ECO "E07"]
[WhiteElo "2513"]
[BlackElo "2321"]
[Annotator "ChessBase"]
[PlyCount "75"]
[EventDate "2018.07.10"]
[EventType "team-tourn"]
[EventCountry "GRE"]
[SourceTitle "playchess.com"]
[Source "ChessBase"]
[SourceQuality "1"]
[TimeControl "40/5400+30:1800+30"]

1. d4 {[%emt 0:00:00]} Nf6 {[%emt 0:00:22]} 2. Nf3 {[%emt 0:00:00]} e6 {[%emt 0:00:31]} 3. g3 {[%emt 0:01:57]} d5 {[%emt 0:02:06]} 4. Bg2 {[%emt 0:01:40]} Nbd7 {[%emt 0:00:21]} 5. O-O {[%emt 0:00:49]} Be7 {[%emt 0:05:57]} 6. c4 {[%emt 0:05:40]} O-O {[%emt 0:00:57]} 7. cxd5 {[%emt 0:08:53]} exd5 {[%emt 0:00:16]} 8. Nc3 {[%emt 0:00:16]} c6 {[%emt 0:01:02]} 9. a3 {[%emt 0:06:04]} a5 {[%emt 0:00:29]} 10. Qc2 {[%emt 0:11:29]} Re8 {[%emt 0:00:31]} 11. Bg5 {[%emt 0:17:10]} Ne4 {[%emt 0:06:28]} 12. Bxe7 {[%emt 0:00:41]} Qxe7 {[%emt 0:00:04]} 13. e3 {[%emt 0:01:54]} Nd6 {[%emt 0:10:52]} 14. Nd2 {[%emt 0:07:37]} Nf6 {[%emt 0:03:23]} 15. b4 {[%emt 0:04:19]} Bf5 {[%emt 0:01:24]} 16. Qb2 {[%emt 0:00:14]} b5 {[%emt 0:04:51]} 17. a4 {[%emt 0:09:18]} Bd3 {[%emt 0:08:25]} 18. Rfe1 {[%emt 0:02:27]} Nc4 {[%emt 0:03:32]} 19. Nxc4 {[%emt 0:00:06]} Bxc4 {[%emt 0:00:07]} 20. bxa5 {[%emt 0:03:21]} b4 {[%emt 0:00:34]} 21. Nb1 {[%emt 0:00:56]} Rxa5 {[%emt 0:00:46]} 22. Nd2 {[%emt 0:00:13]} c5 {[%emt 0:13:31]} 23. e4 {[%emt 0:03:56]} Bd3 {[%emt 0:01:37]} 24. Nb3 {[%emt 0:01:49]} c4 {[%emt 0:07:38]} 25. Nxa5 {[%emt 0:00:16]} c3 {[%emt 0:00:04]} 26. Qb3 {[%emt 0:01:23]} dxe4 {[%emt 0:00:07]} 27. Nc6 {[%emt 0:01:01]} Qd6 {[%emt 0:00:06]} 28. Nxb4 {[%emt 0:01:23]} Rb8 {[%emt 0:00:34]} 29. Qxc3 {[%emt 0:00:11]} Qxb4 {[%emt 0:00:44]} 30. Qxb4 {[%emt 0:00:18]} Rxb4 {[%emt 0:00:02]} 31. a5 {[%emt 0:00:23]} Rxd4 {[%emt 0:00:57]} 32. a6 {[%emt 0:00:20]} Rd8 {[%emt 0:00:05]} 33. a7 {[%emt 0:00:24]} Ra8 {[%emt 0:00:01]} 34. f3 {[%emt 0:00:37]} Nd7 {[%emt 0:00:54]} 35. fxe4 {[%emt 0:01:15]} Ne5 {[%emt 0:00:05]} 36. Rec1 {[%emt 0:00:18]} g6 {[%emt 0:00:19]} 37. Rc7 {[%emt 0:00:27]} Kg7 {[%emt 0:00:50]} 38. Ra5 {[%emt 0:00:26]} 1-0

[Event "46th GRE-chT Premier 2018"]
[Site "Rio Achaia"]
[Date "2018.07.12"]
[Round "4"]
[White "Leniart, Arkadiusz"]
[Black "Gouloutis, Nikolaos"]
[Result "1/2-1/2"]
[ECO "A17"]
[WhiteElo "2489"]
[BlackElo "2382"]
[Annotator "ChessBase"]
[PlyCount "95"]
[EventDate "2018.07.10"]
[EventType "team-tourn"]
[EventCountry "GRE"]
[SourceTitle "playchess.com"]
[Source "ChessBase"]
[SourceQuality "1"]
[TimeControl "40/5400+30:1800+30"]

1. Nf3 {[%emt 0:00:00]} Nf6 {[%emt 0:00:00]} 2. c4 {[%emt 0:00:00]} e6 {[%emt 0:00:00]} 3. Nc3 {[%emt 0:00:00]} Bb4 {[%emt 0:01:14]} 4. g4 {[%emt 0:00:00]} d6 {[%emt 0:04:41]} 5. g5 {[%emt 0:00:00]} Nfd7 {[%emt 0:00:04]} 6. h4 {[%emt 0:00:03]} a5 {[%emt 0:03:20]} 7. h5 {[%emt 0:04:53]} Nc6 {[%emt 0:17:16]} 8. Rg1 {[%emt 0:32:44]} Nde5 {[%emt 0:12:33]} 9. Nxe5 {[%emt 0:00:23]} dxe5 {[%emt 0:00:08]} 10. Bg2 {[%emt 0:07:53]} Bd7 {[%emt 0:13:21]} 11. Ne4 {[%emt 0:00:52]} f5 {[%emt 0:03:45]} 12. gxf6 {[%emt 0:03:32]} gxf6 {[%emt 0:02:02]} 13. a3 {[%emt 0:09:14]} Be7 {[%emt 0:00:09]} 14. h6 {[%emt 0:07:19]} f5 {[%emt 0:09:42]} 15. Nc3 {[%emt 0:00:04]} Rg8 {[%emt 0:02:28]} 16. e3 {[%emt 0:04:52]} e4 {[%emt 0:01:33]} 17. d4 {[%emt 0:04:30]} exd3 {[%emt 0:00:30]} 18. Qxd3 {[%emt 0:03:38]} Ne5 {[%emt 0:05:36]} 19. Qf1 {[%emt 0:05:21]} Bh4 {[%emt 0:07:14]} 20. Bxb7 {[%emt 0:07:38]} Rxg1 {[%emt 0:00:05]} 21. Qxg1 {[%emt 0:00:13]} Ng4 {[%emt 0:00:07]} 22. Ke2 {[%emt 0:02:19]} Rb8 {[%emt 0:01:57]} 23. Bf3 {[%emt 0:00:25]} Qf6 {[%emt 0:10:57]} 24. Bxg4 {[%emt 0:02:11]} fxg4 {[%emt 0:00:05]} 25. Qxg4 {[%emt 0:00:10]} Qxf2+ {[%emt 0:00:04]} 26. Kd3 {[%emt 0:00:08]} Qf5+ {[%emt 0:03:21]} 27. Qxf5 {[%emt 0:00:04]} exf5 {[%emt 0:00:03]} 28. Kc2 {[%emt 0:00:21]} Rb6 {[%emt 0:01:11]} 29. Nd5 {[%emt 0:00:47]} Ba4+ {[%emt 0:00:20]} 30. Kc3 {[%emt 0:01:59]} Be1+ {[%emt 0:00:37]} 31. Kd4 {[%emt 0:00:26]} Rxh6 {[%emt 0:00:11]} 32. Nxc7+ {[%emt 0:01:28]} Kd8 {[%emt 0:00:26]} 33. Nd5 {[%emt 0:00:21]} Rh4+ {[%emt 0:00:33]} 34. Nf4 {[%emt 0:00:51]} Bb3 {[%emt 0:00:23]} 35. e4 {[%emt 0:00:44]} Bg3 {[%emt 0:00:55]} 36. Ne6+ {[%emt 0:00:18]} Kc8 {[%emt 0:00:15]} 37. Nc5 {[%emt 0:01:55]} Bc2 {[%emt 0:00:31]} 38. Bg5 {[%emt 0:00:46]} Rg4 {[%emt 0:00:30]} 39. Rc1 {[%emt 0:00:30]} Bxe4 {[%emt 0:00:48]} 40. Nxe4 {[%emt 0:00:00]} Bf2+ {[%emt 0:00:00]} 41. Ke5 {[%emt 0:06:56]} fxe4 {[%emt 0:00:58]} 42. Bf4 {[%emt 0:00:26]} e3 {[%emt 0:05:35]} 43. Rc2 {[%emt 0:00:06]} h5 {[%emt 0:02:22]} 44. Re2 {[%emt 0:07:17]} a4 {[%emt 0:18:40]} 45. Bxe3 {[%emt 0:02:12]} Bxe3 {[%emt 0:00:13]} 46. Rxe3 {[%emt 0:00:05]} Rxc4 {[%emt 0:00:06]} 47. b3 {[%emt 0:01:27]} axb3 {[%emt 0:00:04]} 48. Rxb3 {[%emt 0:00:04]} 1/2-1/2

[Event "46th GRE-chT Premier 2018"]
[Site "Rio Achaia"]
[Date "2018.07.12"]
[Round "4"]
[White "Paehtz, Elisabeth"]
[Black "Skaraki, Antigoni"]
[Result "1-0"]
[ECO "A45"]
[WhiteElo "2489"]
[BlackElo "2027"]
[Annotator "ChessBase"]
[PlyCount "81"]
[EventDate "2018.07.10"]
[EventType "team-tourn"]
[EventCountry "GRE"]
[SourceTitle "playchess.com"]
[Source "ChessBase"]
[SourceQuality "1"]
[TimeControl "40/5400+30:1800+30"]

1. d4 {[%emt 0:00:00]} Nf6 {[%emt 0:00:00]} 2. Bf4 {[%emt 0:00:00]} g6 {[%emt 0:00:00]} 3. Nc3 {[%emt 0:00:00]} Bg7 {[%emt 0:05:49]} 4. e4 {[%emt 0:00:00]} d6 {[%emt 0:00:07]} 5. Qd2 {[%emt 0:00:00]} O-O {[%emt 0:00:51]} 6. O-O-O {[%emt 0:00:08]} c6 {[%emt 0:12:02]} 7. Bh6 {[%emt 0:00:05]} b5 {[%emt 0:04:21]} 8. f3 {[%emt 0:02:05]} Qa5 {[%emt 0:04:19]} 9. Kb1 {[%emt 0:01:17]} Be6 {[%emt 0:18:29]} 10. Nd5 {[%emt 0:12:52]} Qxd2 {[%emt 0:10:48]} 11. Nxf6+ {[%emt 0:00:23]} Bxf6 {[%emt 0:00:24]} 12. Rxd2 {[%emt 0:00:05]} Rc8 {[%emt 0:03:53]} 13. Be3 {[%emt 0:02:32]} a5 {[%emt 0:03:08]} 14. Ne2 {[%emt 0:01:15]} Bc4 {[%emt 0:10:38]} 15. b3 {[%emt 0:00:14]} Bxe2 {[%emt 0:00:23]} 16. Bxe2 {[%emt 0:00:04]} b4 {[%emt 0:04:14]} 17. f4 {[%emt 0:06:54]} Na6 {[%emt 0:06:18]} 18. Bg4 {[%emt 0:05:56]} Rc7 {[%emt 0:00:52]} 19. Bf3 {[%emt 0:01:26]} Bg7 {[%emt 0:01:21]} 20. e5 {[%emt 0:02:13]} d5 {[%emt 0:00:59]} 21. g4 {[%emt 0:02:39]} e6 {[%emt 0:00:59]} 22. h4 {[%emt 0:05:25]} c5 {[%emt 0:01:00]} 23. h5 {[%emt 0:02:11]} c4 {[%emt 0:02:25]} 24. hxg6 {[%emt 0:00:06]} hxg6 {[%emt 0:00:05]} 25. f5 {[%emt 0:00:30]} cxb3 {[%emt 0:01:11]} 26. cxb3 {[%emt 0:00:28]} Rc3 {[%emt 0:00:17]} 27. Re2 {[%emt 0:00:49]} gxf5 {[%emt 0:05:52]} 28. gxf5 {[%emt 0:00:05]} exf5 {[%emt 0:00:45]} 29. Bxd5 {[%emt 0:00:15]} Rd8 {[%emt 0:02:06]} 30. Bc4 {[%emt 0:00:14]} Nc7 {[%emt 0:00:11]} 31. Rg1 {[%emt 0:02:09]} Kf8 {[%emt 0:00:18]} 32. Rf1 {[%emt 0:05:04]} Nd5 {[%emt 0:01:01]} 33. Bd2 {[%emt 0:00:39]} Rh3 {[%emt 0:00:25]} 34. Rxf5 {[%emt 0:00:35]} Rh1+ {[%emt 0:00:41]} 35. Kc2 {[%emt 0:01:05]} Ra1 {[%emt 0:00:17]} 36. Kb2 {[%emt 0:00:41]} Rd1 {[%emt 0:00:28]} 37. e6 {[%emt 0:04:49]} Bxd4+ {[%emt 0:00:18]} 38. Kc2 {[%emt 0:00:03]} Ne3+ 39. Bxe3 {[%emt 0:00:06]} Bxe3 {[%emt 0:01:14]} 40. e7+ {[%emt 0:00:00]} Kxe7 {[%emt 0:00:00]} 41. Rxe3+ {[%emt 0:00:09]} 1-0

[Event "46th GRE-chT Premier 2018"]
[Site "Rio Achaia"]
[Date "2018.07.12"]
[Round "4"]
[White "Cornette, Deimante"]
[Black "Stoumbou, Eleni"]
[Result "1-0"]
[ECO "B13"]
[WhiteElo "2470"]
[BlackElo "1811"]
[Annotator "ChessBase"]
[PlyCount "95"]
[EventDate "2018.07.10"]
[EventType "team-tourn"]
[EventCountry "GRE"]
[SourceTitle "playchess.com"]
[Source "ChessBase"]
[SourceQuality "1"]
[TimeControl "40/5400+30:1800+30"]

1. e4 {[%emt 0:00:00]} c6 {[%emt 0:00:00]} 2. d4 {[%emt 0:00:00]} d5 {[%emt 0:00:00]} 3. exd5 {[%emt 0:00:05]} cxd5 {[%emt 0:00:02]} 4. Bd3 {[%emt 0:00:09]} Nc6 {[%emt 0:00:11]} 5. c3 {[%emt 0:00:11]} Qc7 {[%emt 0:00:39]} 6. Ne2 {[%emt 0:00:24]} Bg4 {[%emt 0:04:54]} 7. O-O {[%emt 0:00:49]} e6 {[%emt 0:02:12]} 8. Qe1 {[%emt 0:01:37]} Bd6 {[%emt 0:11:32]} 9. f3 {[%emt 0:00:58]} Bh5 {[%emt 0:00:56]} 10. Qh4 {[%emt 0:00:38]} Bg6 {[%emt 0:04:29]} 11. Bxg6 {[%emt 0:00:23]} fxg6 {[%emt 0:00:06]} 12. Nf4 {[%emt 0:06:42]} Kf7 {[%emt 0:08:34]} 13. Re1 {[%emt 0:06:16]} Re8 {[%emt 0:01:29]} 14. Na3 {[%emt 0:05:48]} a6 {[%emt 0:19:24]} 15. Nc2 {[%emt 0:03:55]} Nh6 {[%emt 0:05:01]} 16. g3 {[%emt 0:07:51]} Nf5 {[%emt 0:06:51]} 17. Qg4 {[%emt 0:02:13]} Rhf8 {[%emt 0:12:57]} 18. Kg2 {[%emt 0:03:39]} Bxf4 {[%emt 0:16:54]} 19. Bxf4 e5 20. dxe5 {[%emt 0:11:20]} Nxe5 {[%emt 0:01:14]} 21. Bxe5 {[%emt 0:00:46]} Rxe5 22. Qf4 {[%emt 0:00:55]} Rfe8 {[%emt 0:00:22]} 23. Rxe5 {[%emt 0:01:15]} Qxe5 {[%emt 0:00:25]} 24. Qxe5 {[%emt 0:00:09]} Rxe5 25. Kf2 g5 {[%emt 0:02:43]} 26. Rd1 {[%emt 0:02:20]} Ne7 {[%emt 0:00:38]} 27. Nb4 {[%emt 0:01:49]} Ke6 {[%emt 0:00:41]} 28. Nd3 {[%emt 0:01:08]} Rf5 {[%emt 0:00:43]} 29. Nc5+ Kd6 {[%emt 0:00:20]} 30. Nxb7+ {[%emt 0:01:47]} Kc6 {[%emt 0:00:12]} 31. Na5+ {[%emt 0:00:15]} Kb6 {[%emt 0:00:36]} 32. Nb3 {[%emt 0:00:49]} Re5 {[%emt 0:00:40]} 33. Nd4 {[%emt 0:03:21]} Nc6 {[%emt 0:00:40]} 34. Nxc6 {[%emt 0:05:15]} Kxc6 {[%emt 0:00:06]} 35. Re1 {[%emt 0:00:07]} Rf5 {[%emt 0:00:45]} 36. Re6+ {[%emt 0:14:31]} Kb5 {[%emt 0:00:04]} 37. Re7 Kc4 38. Ke3 {[%emt 0:03:12]} h5 {[%emt 0:01:06]} 39. Rc7+ {[%emt 0:00:24]} Kb5 {[%emt 0:00:00]} 40. Rxg7 {[%emt 0:00:00]} Re5+ {[%emt 0:00:00]} 41. Kf2 Kc4 42. f4 {[%emt 0:04:39]} gxf4 {[%emt 0:08:39]} 43. gxf4 {[%emt 0:00:04]} Re4 {[%emt 0:00:14]} 44. Kf3 {[%emt 0:01:31]} Kd3 {[%emt 0:02:30]} 45. f5 {[%emt 0:01:32]} Re3+ {[%emt 0:02:44]} 46. Kf4 {[%emt 0:00:27]} Re2 {[%emt 0:00:07]} 47. Rg3+ {[%emt 0:00:23]} Kc4 {[%emt 0:00:47]} 48. f6 {[%emt 0:00:49]} 1-0

[Event "46th GRE-chT Premier 2018"]
[Site "Rio Achaia"]
[Date "2018.07.12"]
[Round "4"]
[White "Sandalakis, Angelos"]
[Black "Drakopoulos, Polihronis"]
[Result "1-0"]
[ECO "A05"]
[WhiteElo "2448"]
[BlackElo "2105"]
[Annotator "NA"]
[PlyCount "93"]
[EventDate "2018.07.10"]
[EventType "team-tourn"]
[EventCountry "GRE"]
[SourceTitle "playchess.com"]
[Source "ChessBase"]
[SourceQuality "1"]
[TimeControl "40/5400+30:1800+30"]

1. Nf3 {[%emt 0:00:00]} Nf6 {[%emt 0:05:21]} 2. c4 {[%emt 0:00:00]} e6 {[%emt 0:00:49]} 3. g3 {[%emt 0:00:00]} a6 {[%emt 0:00:06]} 4. b3 {[%emt 0:00:07]} b5 {[%emt 0:01:31]} 5. Nc3 {[%emt 0:00:45]} b4 {[%emt 0:05:26]} 6. Na4 {[%emt 0:00:07]} c5 {[%emt 0:02:33]} 7. Bg2 {[%emt 0:08:24]} Bb7 {[%emt 0:02:06]} 8. O-O {[%emt 0:00:14]} Be7 {[%emt 0:00:55]} 9. d4 {[%emt 0:01:56]} cxd4 {[%emt 0:10:50]} 10. Qxd4 {[%emt 0:02:25]} O-O {[%emt 0:12:45]} 11. Bb2 {[%emt 0:01:52]} Nc6 {[%emt 0:05:07]} 12. Qd3 {[%emt 0:13:06]} d6 {[%emt 0:10:32]} 13. Rad1 {[%emt 0:07:17]} Nd7 {[%emt 0:04:23]} 14. Qe3 {[%emt 0:02:30]} Qc7 {[%emt 0:01:18]} 15. Rd2 {[%emt 0:01:29]} Rfd8 {[%emt 0:04:57]} 16. Rfd1 {[%emt 0:00:29]} h6 {[%emt 0:00:52]} 17. h4 {[%emt 0:10:51]} a5 {[%emt 0:02:46]} 18. Bh3 {[%emt 0:06:54]} Nf6 {[%emt 0:08:50]} 19. Rd3 {[%emt 0:03:22]} Rab8 {[%emt 0:02:42]} 20. Bg2 {[%emt 0:05:50]} Nd7 {[%emt 0:08:50]} 21. Nd4 {[%emt 0:10:25]} Nxd4 {[%emt 0:00:33]} 22. Qxd4 {[%emt 0:01:22]} e5 {[%emt 0:03:12]} 23. Qa7 {[%emt 0:04:01]} Rdc8 {[%emt 0:00:10]} 24. Bxb7 {[%emt 0:00:21]} Rxb7 {[%emt 0:00:35]} 25. Qe3 {[%emt 0:00:06]} f5 {[%emt 0:01:24]} 26. R3d2 {[%emt 0:01:20]} Rbb8 {[%emt 0:01:28]} 27. Qf3 {[%emt 0:02:28]} Rf8 {[%emt 0:01:42]} 28. c5 {[%emt 0:01:47]} Nxc5 {[%emt 0:00:54]} 29. Qd5+ {[%emt 0:00:21]} Kh7 {[%emt 0:01:10]} 30. Nxc5 {[%emt 0:00:52]} Qxc5 {[%emt 0:00:03]} 31. Qxc5 {[%emt 0:00:09]} dxc5 {[%emt 0:00:01]} 32. Bxe5 {[%emt 0:00:08]} Rbd8 {[%emt 0:00:41]} 33. Rd7 {[%emt 0:02:43]} Kg8 {[%emt 0:00:11]} 34. Bxg7 {[%emt 0:01:16]} Kxg7 {[%emt 0:00:41]} 35. Rxe7+ {[%emt 0:00:12]} Kf6 {[%emt 0:00:07]} 36. Rxd8 {[%emt 0:01:13]} Rxd8 {[%emt 0:00:05]} 37. Ra7 {[%emt 0:00:05]} Rd2 {[%emt 0:01:43]} 38. Rxa5 {[%emt 0:00:20]} Rc2 {[%emt 0:01:05]} 39. Kg2 {[%emt 0:00:36]} Ke5 {[%emt 0:00:19]} 40. Kf3 {[%emt 0:00:00]} h5 {[%emt 0:00:00]} 41. Ke3 {[%emt 0:01:01]} Rc3+ {[%emt 0:01:16]} 42. Kd2 {[%emt 0:00:25]} f4 {[%emt 0:00:41]} 43. Ra8 {[%emt 0:03:44]} fxg3 {[%emt 0:02:30]} 44. fxg3 {[%emt 0:00:07]} Rxg3 {[%emt 0:01:04]} 45. Rh8 {[%emt 0:00:06]} Kd4 {[%emt 0:00:21]} 46. Rxh5 {[%emt 0:00:28]} c4 {[%emt 0:00:16]} 47. Rb5 {[%emt 0:00:45]} 1-0